bitfinex-derivatives/quotes_ETHF0:USTF0_20250411
["timestamp","ask_amount","ask_price","bid_price","bid_amount"]
[1744370714769,13.48732365,1562.3,1562.2,6.31298]
[1744370716365,13.48732365,1562.3,1562.2,5.032]
[1744370716567,1.28111,1562.1,1562.0,1.28111]
[1744370716875,1.28107,1562.1,1562.0,8.78261]
[1744370717374,4.09207,1562.2,1562.1,1.28107]
[1744370717574,4.09207,1562.2,1562.1,4.04677]
[1744370718175,2.811,1562.2,1562.1,4.04677]
[1744370718370,4.95337762,1562.4,1562.3,1.2809]
[1744370718880,6.23419762,1562.4,1562.3,2.2985]
[1744370719075,9.09099762,1562.4,1562.3,3.5794]
[1744370720280,7.81017762,1562.4,1562.3,3.5794]
[1744370720575,7.81017762,1562.4,1562.3,5.9543]
[1744370721578,9.09099762,1562.4,1562.3,5.9543]
[1744370722078,9.09099762,1562.4,1562.3,4.6734]
[1744370722376,9.09099762,1562.4,1562.3,5.9543]
[1744370725379,12.52831047,1562.4,1562.3,5.9543]
[1744370726280,15.73611047,1562.4,1562.3,5.9543]
[1744370727582,12.52831047,1562.4,1562.3,5.9543]
[1744370727881,15.73611047,1562.4,1562.3,5.9543]
[1744370728483,8.30604404,1562.4,1562.3,5.9543]
[1744370731077,5.09824404,1562.4,1562.3,5.9543]
[1744370731285,5.09824404,1562.4,1562.3,8.6466]
[1744370731483,5.09824404,1562.4,1562.3,5.9543]
[1744370733087,5.09824404,1562.4,1562.3,3.6558]
[1744370733286,7.28014404,1562.4,1562.3,2.3749]
[1744370733491,1.2809,1562.3,1562.2,3.97325]
[1744370733686,5.94,1562.3,1562.2,1.28095]
[1744370733896,1.28098,1562.2,1562.1,1.281]
[1744370734194,6.19308,1562.2,1562.1,1.281]
[1744370735695,1.28115,1562.1,1562.0,1.28113]
[1744370735887,1.28115,1562.0,1561.9,0.00960031]
[1744370736289,8.86095,1562.0,1561.9,0.00960031]
[1744370736589,8.86095,1562.0,1561.6,14.99267314]
[1744370736590,1.28139,1561.7,1561.6,14.99267314]
[1744370736787,9.55419,1561.7,1561.6,12.1261805]
[1744370737095,14.55419,1561.7,1561.6,7.23543142]
[1744370737394,1.28148,1561.6,1561.5,10.7984005]
[1744370737595,1.28148,1561.6,1561.5,10.80800081]
[1744370737786,6.28148,1561.6,1561.5,10.80800081]
[1744370737983,6.28148,1561.6,1561.5,9.32452081]
[1744370738192,6.28148,1561.6,1561.5,0.03298081]
[1744370739398,6.28148,1561.6,1561.5,8.1e-07]
[1744370739706,6.28148,1561.6,1561.3,19.8870935]
[1744370739707,4.48944,1561.4,1561.3,15.36842431]
[1744370739900,1.28172,1561.3,1561.2,21.01974587]
[1744370740101,1.28172,1561.3,1561.2,18.51338587]
[1744370740307,6.28172,1561.3,1561.2,15.01191587]
[1744370740504,1.28197,1561.0,1560.9,29.83064025]
[1744370740705,9.55577,1561.0,1560.9,29.83064025]
[1744370740906,14.55577,1561.0,1560.9,29.83064025]
[1744370741394,13.2738,1561.0,1560.8,0.11956638]
[1744370741599,3.87875,1560.9,1560.8,0.11956638]
[1744370742610,8.87875,1560.9,1560.8,0.11956638]
[1744370743215,3.87875,1560.9,1560.8,0.11956638]
[1744370744207,14.75538522,1560.9,1560.8,0.11956638]
[1744370745102,14.75538522,1560.9,1559.8,8.27525]
[1744370745103,13.47333522,1560.9,1559.9,5.5078]
[1744370745403,13.47333522,1560.9,1560.1,1.28271]
[1744370745404,3.2078,1560.2,1560.1,1.28271]
[1744370745702,3.2078,1560.6,1560.5,1.28231]
[1744370746111,3.2078,1560.6,1560.5,6.28231]
[1744370746405,3.2078,1560.6,1560.5,8.60111]
[1744370747108,4.91601118,1560.8,1560.7,1.28221]
[1744370747310,4.91601118,1560.8,1560.5,5.00626906]
[1744370747811,4.91601118,1560.8,1560.7,1.28221]
[1744370748814,5.0,1560.8,1560.4,2.30960031]
[1744370749008,3.2078,1560.5,1560.4,1.29206031]
[1744370749911,1.2823,1560.6,1560.4,0.00960031]
[1744370750112,3.2078,1560.6,1560.4,1.29199031]
[1744370750305,1.28238,1560.5,1560.4,0.00960031]
[1744370750509,4.49014,1560.6,1560.4,1.29206031]
[1744370750709,4.49014,1560.6,1560.4,0.00960031]
[1744370750911,4.49012,1560.6,1560.4,1.29200031]
[1744370752015,4.49012,1560.6,1560.5,1.28238]
[1744370752216,1.28238,1560.5,1560.4,1.29199031]
[1744370752508,5.80375,1560.8,1560.4,3.21572031]
[1744370752509,4.48998,1560.8,1560.4,3.21572031]
[1744370752715,1.28209,1560.9,1560.8,1.28213]
[1744370752915,1.28215,1560.8,1560.7,1.28217]
[1744370753108,4.48995,1560.8,1560.6,1.28223]
[1744370753413,4.48995,1560.8,1560.7,1.28221]
[1744370753813,1.28215,1560.8,1560.7,1.28221]
[1744370754002,4.49941031,1561.0,1560.5,5.48126]
[1744370754209,4.49941031,1561.0,1560.9,1.28205]
[1744370754210,3.21740031,1561.0,1560.9,1.28205]
[1744370755109,3.21740031,1561.0,1560.9,3.55795]
[1744370755613,0.00960031,1561.0,1560.9,3.55795]
[1744370755811,0.00960031,1561.0,1560.9,8.55795]
[1744370756012,4.91601118,1561.2,1561.1,1.28189]
[1744370756408,1.28178,1561.3,1561.2,1.2818]
[1744370756809,1.28182,1561.2,1561.1,1.28183]
[1744370757110,0.00960031,1561.3,1561.2,1.2818]
[1744370760306,0.00960031,1561.3,1561.2,3.8076]
[1744370760510,9.40515118,1561.8,1561.7,1.28139]
[1744370760715,11.32711118,1561.8,1561.5,1.28151]
[1744370760919,4.48919,1561.7,1561.6,2.5258]
[1744370761605,3.2078,1561.7,1561.6,3.80728]
[1744370762214,4.92561149,1561.8,1561.7,1.28139]
[1744370762410,4.92561149,1561.8,1561.7,6.16439]
[1744370762816,9.41472149,1561.8,1561.7,4.883]
[1744370763018,8.13341149,1561.8,1561.7,6.16439]
[1744370763618,4.92561149,1561.8,1561.7,6.16439]
[1744370763819,8.13341149,1561.8,1561.7,6.16439]
[1744370764021,9.41472149,1561.8,1561.7,6.16439]
[1744370764921,9.41472149,1561.8,1561.7,4.883]
[1744370765118,9.41472149,1561.8,1561.7,6.16439]
[1744370765422,9.41472149,1561.8,1561.7,2.5559]
[1744370765722,4.49871031,1561.8,1561.7,2.5559]
[1744370766725,1.28148,1561.6,1561.5,0.00960031]
[1744370766919,4.48928,1561.6,1561.5,0.00960031]
[1744370767119,9.48928,1561.6,1561.5,0.00960031]
[1744370767920,9.48928,1561.6,1561.5,3.1e-07]
[1744370768514,1.28189,1561.1,1561.0,2.488]
[1744370768722,4.48969,1561.1,1561.0,2.488]
[1744370769925,3.2078,1561.1,1561.0,3.76997]
[1744370770319,3.2078,1561.1,1561.0,1.28197]
[1744370770519,3.2078,1561.1,1561.0,6.02937]
[1744370771924,4.48969,1561.1,1561.0,6.02937]
[1744370772417,4.48969,1561.1,1561.0,4.7474]
[1744370772917,4.48969,1561.1,1561.0,6.02937]
[1744370773223,3.2078,1561.3,1561.0,11.02937]
[1744370773521,4.91601118,1561.4,1561.3,1.28172]
[1744370773718,8.12381118,1561.4,1561.3,1.28172]
[1744370774320,6.19765118,1561.4,1561.3,3.45382]
[1744370774526,4.91601118,1561.5,1561.4,1.28164]
[1744370774727,4.91601118,1561.5,1561.4,3.94474]
[1744370775533,6.19762118,1561.5,1561.4,3.94474]
[1744370775726,6.19762118,1561.5,1561.4,6.25884]
[1744370776924,4.48933,1561.6,1561.5,1.28156]
[1744370777125,4.48933,1561.6,1561.5,3.87436]
[1744370777533,8.83737118,1561.7,1561.6,1.28148]
[1744370777727,1.28148,1561.6,1561.5,3.87429]
[1744370778633,4.48928,1561.6,1561.5,2.5928]
[1744370778832,7.19618,1561.6,1561.5,2.5928]
[1744370779544,1.28156,1561.5,1561.4,2.3141]
[1744370779734,3.98846,1561.5,1561.4,4.9069]
[1744370780034,3.98846,1561.5,1561.4,6.18854]
[1744370781129,3.98846,1561.5,1561.4,4.9069]
[1744370781434,1.28167,1561.4,1561.3,1.28166]
[1744370781730,4.48932,1561.6,1561.5,1.28156]
[1744370782533,1.28158,1561.5,1561.4,1.28157]
[1744370782735,1.28158,1561.5,1561.4,3.73497]
[1744370782932,4.48936,1561.6,1561.5,1.28156]
[1744370783231,12.82457042,1561.6,1561.5,3.79236]
[1744370784635,12.82457042,1561.6,1561.5,2.5108]
[1744370785235,12.82457042,1561.6,1561.5,3.79236]
[1744370785728,11.54301042,1561.6,1561.5,3.79236]
[1744370785936,8.33521042,1561.6,1561.5,3.79236]
[1744370786434,8.33521042,1561.6,1561.5,44.59236]
[1744370786637,11.54301042,1561.6,1561.5,44.59236]
[1744370787027,12.82449042,1561.6,1561.5,44.59236]
[1744370787725,11.54301042,1561.6,1561.5,44.59236]
[1744370788231,8.33521042,1561.6,1561.5,44.59236]
[1744370788731,9.83202236,1561.7,1561.5,52.80016]
[1744370788939,8.80253308,1561.7,1561.6,3.92568]
[1744370789431,8.80253308,1561.7,1561.6,8.92568]
[1744370790130,0.00960031,1561.8,1561.7,1.28139]
[1744370790131,4.93918564,1561.8,1561.7,1.28139]
[1744370790342,4.93918564,1561.8,1561.7,3.91839]
[1744370790529,4.93918564,1561.8,1561.7,8.91839]
[1744370791236,4.93918564,1561.8,1561.7,3.91839]
[1744370792539,4.93918564,1561.8,1561.7,8.97139]
[1744370793326,0.00960031,1561.8,1561.7,8.97139]
[1744370796638,3.2078,1562.1,1562.0,1.28115]
[1744370797137,6.21056533,1562.2,1562.1,1.28107]
[1744370797735,6.21056533,1562.2,1562.1,3.77547]
[1744370798240,4.92958533,1562.2,1562.1,3.77547]
[1744370798442,5.43056533,1562.2,1562.1,3.77547]
[1744370799942,4.14958533,1562.2,1562.1,3.77547]
[1744370800235,4.14958533,1562.2,1562.0,0.12977151]
[1744370800441,4.14958533,1562.2,1562.1,1.28107]
[1744370801939,1.28107,1562.1,1562.0,1.29068031]
[1744370802146,7.14367,1562.1,1562.0,1.29068031]
[1744370802943,3.2078,1562.1,1562.0,1.29068031]
[1744370803631,3.2078,1562.1,1562.0,3.90998031]
[1744370805142,4.14958533,1562.2,1562.0,3.90998031]
[1744370805143,4.14958533,1562.2,1562.1,1.28107]
[1744370805339,4.14958533,1562.2,1562.1,3.74887]
[1744370805539,3.20307,1562.0,1561.5,3.72524253]
[1744370805843,12.84498826,1562.2,1561.0,2.1297]
[1744370805844,6.41153,1561.6,1561.0,2.1297]
[1744370806044,1.28196,1561.1,1560.9,15.02666223]
[1744370806344,4.48962,1561.2,1560.9,16.30865223]
[1744370806539,4.48962,1561.2,1560.9,16.30868223]
[1744370806540,2.4749,1561.1,1560.9,16.30868223]
[1744370806743,0.00960031,1561.2,1561.1,1.28189]
[1744370807137,0.00960031,1561.2,1561.0,10.58611]
[1744370807341,4.49921031,1561.2,1561.0,4.2522]
[1744370807541,1.28189,1561.1,1561.0,2.1297]
[1744370807741,3.96939,1561.1,1560.9,15.03626254]
[1744370808544,2.6875,1561.1,1560.9,15.03626254]
[1744370808847,2.6875,1561.1,1561.0,1.28197]
[1744370809042,0.00960031,1561.2,1560.9,15.03626254]
[1744370809245,0.00960031,1561.2,1560.9,1.29159031]
[1744370809440,0.00960031,1561.2,1560.9,0.00960031]
[1744370809640,0.00960031,1561.2,1560.9,1.29157031]
[1744370809848,0.00960031,1561.2,1560.9,0.00960031]
[1744370810042,0.00960031,1561.2,1561.1,1.28189]
[1744370810244,0.00960031,1561.2,1561.1,6.33489]
[1744370810448,0.00960031,1561.2,1561.1,15.74519]
[1744370810650,0.00960031,1561.2,1561.1,13.28269]
[1744370812042,1.28189,1561.1,1560.9,0.00960031]
[1744370812249,1.2819,1561.1,1560.9,0.00960031]
[1744370812453,2.6788,1561.1,1560.9,3.82914031]
[1744370812639,3.96069,1561.1,1561.0,43.3375]
[1744370812942,3.96069,1561.1,1561.0,40.8]
[1744370813246,2.6788,1561.1,1561.0,40.8]
[1744370813438,3.96069,1561.1,1561.0,43.4549]
[1744370814646,1.28197,1561.0,1560.9,5.06260031]
[1744370814950,3.85587,1561.0,1560.9,5.06260031]
[1744370815141,3.85587,1561.0,1560.9,45.86260031]
[1744370815749,3.85587,1561.0,1560.9,40.80960031]
[1744370816643,3.85587,1561.0,1560.9,0.00960031]
[1744370817457,12.06367,1561.0,1560.9,0.00960031]
[1744370817660,1.2823,1560.6,1560.5,7.3281]
[1744370817961,3.2078,1560.7,1560.5,52.10106]
[1744370818157,1.28224,1560.7,1560.5,52.10106]
[1744370818359,1.2823,1560.6,1560.5,50.8187]
[1744370818548,3.8185,1560.6,1560.5,45.848]
[1744370818748,2.5362,1560.6,1560.4,0.00960031]
[1744370818953,3.2078,1560.7,1560.4,0.00960031]
[1744370818954,7.02638,1560.5,1560.4,0.00960031]
[1744370819660,0.00960031,1561.2,1560.6,3.20575]
[1744370819954,19.50472063,1562.8,1561.2,3.2044]
[1744370819955,3.2078,1562.0,1561.2,3.2044]
[1744370820156,17.08899311,1561.7,1561.6,1.28148]
[1744370820657,17.08899311,1561.7,1561.6,4.48928]
[1744370820860,5.4048,1562.6,1562.1,1.28105]
[1744370821160,1.28093,1562.3,1562.2,2.53730031]
[1744370821362,1.28093,1562.3,1562.2,0.00960031]
[1744370821663,6.28093,1562.3,1562.2,0.00960031]
[1744370821863,1.28093,1562.3,1562.2,0.00960031]
[1744370822261,4.48873,1562.3,1562.2,2.53730031]
[1744370822454,4.48873,1562.3,1562.2,0.00960031]
[1744370822761,1.28082,1562.4,1562.2,0.00960031]
[1744370823064,3.21740031,1562.5,1562.3,1.28088]
[1744370823262,5.93240031,1562.5,1562.3,3.91728]
[1744370823454,5.93240031,1562.5,1562.2,0.00960031]
[1744370823660,1.28089,1562.4,1562.2,3.92696031]
[1744370823862,0.00960031,1562.5,1562.2,5.85380031]
[1744370824161,3.21740031,1562.5,1562.2,2.64600031]
[1744370824468,4.00536031,1562.5,1562.3,1.28083]
[1744370825258,7.21316031,1562.5,1562.3,1.28083]
[1744370825566,4.00539031,1562.5,1562.3,1.28088]
[1744370825862,1.28082,1562.4,1562.2,2.64600031]
[1744370826256,1.28082,1562.4,1562.2,3.92694031]
[1744370826452,1.2809,1562.3,1562.2,0.00960031]
[1744370826656,1.28139,1561.7,1561.6,42.9125]
[1744370826861,6.41093,1561.9,1561.5,7.1084]
[1744370827066,1.28136,1561.8,1561.5,5.8269]
[1744370827260,1.28143,1561.7,1561.6,40.8]
[1744370828363,2.6951,1561.8,1561.6,42.0814]
[1744370828562,1.28139,1561.7,1561.6,40.8]
[1744370828864,2.6951,1561.8,1561.6,1.28147]
[1744370829070,1.28144,1561.7,1561.5,3.91020031]
[1744370829369,1.28144,1561.7,1561.5,44.71020031]
[1744370829557,1.28148,1561.6,1561.5,44.71020031]
[1744370829759,1.28143,1561.7,1561.6,1.28145]
[1744370830065,1.29099031,1561.7,1561.6,1.28145]
[1744370830266,1.29099031,1561.7,1561.5,44.71020031]
[1744370830462,1.28148,1561.6,1561.5,40.80960031]
[1744370830655,7.16878,1561.6,1561.5,0.00960031]
[1744370830860,3.20419,1561.4,1561.0,16.30860223]
[1744370831166,3.20419,1561.4,1561.0,16.30863223]
[1744370831167,1.28189,1561.1,1561.0,16.30863223]
[1744370831363,2.6795,1561.3,1561.2,1.2818]
[1744370831554,10.46992,1561.6,1561.3,1.28164]
[1744370831555,1.28162,1561.5,1561.3,1.28164]
[1744370831755,3.98982,1561.5,1561.4,1.28164]
[1744370831959,2.2192,1561.6,1561.5,1.28156]
[1744370832367,2.2192,1561.6,1561.3,3.20431]
[1744370832368,2.2192,1561.6,1561.2,4.66800031]
[1744370832567,3.98981,1561.5,1561.4,1.28164]
[1744370832862,3.98981,1561.5,1561.2,4.66800031]
[1744370832863,2.7082,1561.5,1561.2,4.66800031]
[1744370833069,1.28172,1561.3,1561.2,2.48430031]
[1744370833374,1.28172,1561.3,1561.2,0.00960031]
[1744370833969,3.98992,1561.3,1561.2,0.00960031]
[1744370834465,8.98992,1561.3,1561.2,0.00960031]
[1744370834671,8.20789277,1561.3,1560.4,3.2078]
[1744370834870,8.20789277,1561.3,1560.1,0.11149611]
[1744370834871,1.28234,1560.6,1560.3,2.6213]
[1744370835071,1.28238,1560.5,1560.4,1.28241]
[1744370835271,3.2078,1560.6,1560.3,2.6213]
[1744370835272,1.28246,1560.4,1560.3,3.90378]
[1744370835569,3.2078,1560.6,1560.5,1.28238]
[1744370835872,1.28238,1560.5,1560.4,1.28881895]
[1744370836175,1.28238,1560.5,1560.4,0.00639895]
[1744370836471,1.28238,1560.5,1560.4,1.28885895]
[1744370836777,0.00960031,1560.7,1560.6,1.2823]
[1744370837664,0.00960031,1560.7,1560.6,6.2823]
[1744370838262,0.00960031,1560.7,1560.6,1.2823]
[1744370838469,0.00960031,1560.7,1560.5,2.6213]
[1744370838670,0.00960031,1560.7,1560.6,1.2823]
[1744370840467,0.00960031,1560.7,1560.6,6.2823]
[1744370840668,0.00960031,1560.7,1560.6,1.2823]
[1744370841077,0.00960031,1560.7,1560.6,42.0823]
[1744370841370,0.00960031,1560.7,1560.6,45.2901]
[1744370841674,0.00960031,1560.7,1560.6,42.0823]
[1744370844675,0.00960031,1560.7,1560.6,44.1715]
[1744370846175,1.29181031,1560.7,1560.6,44.1715]
[1744370846677,0.00960031,1560.7,1560.6,44.1715]
[1744370846974,9.49961031,1560.7,1560.6,40.8]
[1744370847173,1.2823,1560.6,1560.5,2.6213]
[1744370847477,4.49969031,1560.7,1560.6,1.2823]
[1744370847676,6.84279031,1560.7,1560.6,1.2823]
[1744370848077,6.84279031,1560.7,1560.4,2.45709895]
[1744370848078,1.28231,1560.6,1560.5,1.28231]
[1744370848575,1.28238,1560.5,1560.4,0.00639895]
[1744370848776,4.49018,1560.5,1560.4,0.00639895]
[1744370848981,1.28263,1560.2,1560.1,3.2078]
[1744370849176,1.28271,1560.1,1560.0,1.28275]
[1744370849579,1.28279,1560.0,1559.9,44.14522]
[1744370849879,1.28271,1560.1,1559.9,42.0828]
[1744370850075,3.73159,1560.0,1559.9,40.8]
[1744370850273,2.4488,1560.0,1559.5,5.2704]
[1744370850580,1.29250031,1559.9,1559.8,1.28291]
[1744370850778,0.00960031,1559.9,1559.8,1.28291]
[1744370850971,3.1e-07,1559.9,1559.8,9.49071]
[1744370851176,1.28231,1560.6,1560.1,3.20666]
[1744370851478,1.28243,1560.5,1560.4,1.28244]
[1744370851679,1.28239,1560.5,1560.4,1.2824]
[1744370851983,3.73112,1560.6,1560.5,1.28238]
[1744370852184,0.00960031,1560.6,1560.3,6.41274]
[1744370852485,0.00960031,1560.6,1560.5,1.28238]
[1744370852878,1.28243,1560.5,1560.4,1.28244]
[1744370853183,1.29194031,1560.6,1560.5,1.28238]
[1744370853377,0.00960031,1560.6,1560.5,1.28238]
[1744370853977,1.29190031,1560.6,1560.5,1.28238]
[1744370854172,0.00960031,1560.6,1560.5,1.28238]
[1744370854372,1.29190031,1560.6,1560.5,1.28238]
[1744370855081,3.20595,1560.5,1559.9,6.41481]
[1744370855284,1.28258,1560.3,1560.2,1.28257]
[1744370855476,3.73423,1560.4,1560.3,1.28254]
[1744370855676,1.28257,1560.3,1560.2,1.28257]
[1744370855877,1.28263,1560.2,1560.1,42.08266]
[1744370856077,1.28271,1560.1,1560.0,1.28273]
[1744370856289,1.2828,1560.1,1560.0,1.28276]
[1744370856583,1.2828,1560.1,1560.0,42.08276]
[1744370857083,5.0,1560.1,1559.9,3.2078]
[1744370857379,8.59695,1560.5,1559.9,3.2078]
[1744370857380,4.49032,1560.4,1560.0,3.20698]
[1744370857573,1.28252,1560.4,1560.3,1.28254]
[1744370857773,3.73761,1560.5,1560.4,1.28246]
[1744370857974,2.04400031,1560.6,1560.2,3.20654]
[1744370858180,1.28249,1560.4,1560.3,1.28246]
[1744370858374,3.20616,1560.4,1559.9,6.41494]
[1744370858575,3.20657,1560.2,1559.8,4.2137]
[1744370858874,1.28295,1559.8,1559.7,0.00959999]
[1744370859079,9.78775,1559.8,1559.7,0.00959999]
[1744370859281,4.49075,1559.8,1559.7,0.00959999]
[1744370859475,1.28295,1559.8,1559.7,1.29263999]
[1744370859680,1.28295,1559.8,1559.7,0.00959999]
[1744370859875,3.73025,1559.8,1559.7,0.00959999]
[1744370860086,3.73025,1559.8,1559.7,2.37069999]
[1744370860383,3.73025,1559.8,1559.7,0.00959999]
[1744370860882,3.73025,1559.8,1559.7,1.29263999]
[1744370861783,3.73025,1559.8,1559.7,0.00959999]
[1744370861989,6.93805,1559.8,1559.7,0.00959999]
[1744370862288,11.93805,1559.8,1559.7,0.00959999]
[1744370862485,11.93805,1559.8,1559.7,9.99e-06]
[1744370862783,1.28327,1559.5,1559.4,1.28328]
[1744370863085,1.28345,1559.2,1559.1,2.4766]
[1744370863675,0.00960031,1559.3,1559.2,1.28345]
[1744370864180,3.2078,1559.8,1559.2,1.28345]
[1744370864181,1.28304,1559.7,1559.6,1.28307]
[1744370864381,7.07738,1559.8,1559.7,1.28304]
[1744370864579,5.7944,1559.8,1559.5,5.6846]
[1744370864883,5.7944,1559.8,1559.2,4.2263]
[1744370865086,3.2078,1559.6,1559.3,3.80483]
[1744370865384,1.28328,1559.4,1559.3,0.00960031]
[1744370865588,1.28378,1558.8,1558.7,4.49161]
[1744370865886,3.20896,1559.1,1558.7,2.5215]
[1744370866082,5.73913,1559.1,1558.7,2.5215]
[1744370866282,3.2078,1559.2,1558.8,3.20945]
[1744370866489,1.28332,1559.4,1559.3,1.28332]
[1744370866687,1.28344,1559.3,1559.1,2.5215]
[1744370866982,6.41602,1559.4,1558.7,6.41741]
[1744370867288,1.2836,1559.1,1559.0,1.28359]
[1744370867491,1.28353,1559.1,1559.0,1.28361]
[1744370867692,1.28359,1559.1,1559.0,1.28359]
[1744370867987,1.28363,1559.0,1558.9,1.28363]
[1744370868184,6.41643,1559.2,1558.7,5.7293]
[1744370868493,1.28369,1559.0,1558.9,1.28369]
[1744370868678,6.41643,1559.2,1559.0,1.28359]
[1744370868679,1.2836,1559.1,1559.0,1.28359]
[1744370869084,1.28363,1559.0,1558.9,1.28363]
[1744370869391,1.28359,1559.1,1559.0,1.28359]
[1744370869590,1.28354,1559.1,1558.8,3.20941]
[1744370869799,1.28354,1559.1,1559.0,1.28353]
[1744370870089,1.28351,1559.2,1559.1,1.2835]
[1744370870395,1.28351,1559.2,1558.9,5.76532]
[1744370870396,1.28356,1559.1,1559.0,1.28356]
[1744370870586,4.49131,1559.2,1559.1,1.28353]
[1744370870779,1.28344,1559.3,1559.0,3.20904]
[1744370870982,3.2078,1559.1,1558.3,3.2078]
[1744370871191,3.2078,1559.0,1558.6,2.7314]
[1744370871584,1.28378,1558.8,1558.7,1.28381]
[1744370871791,1.28376,1558.9,1558.8,1.28377]
[1744370871986,3.2078,1559.0,1558.6,5.94124]
[1744370872186,8.77726,1559.3,1558.7,6.41731]
[1744370872496,1.2837,1558.9,1558.8,4.01513]
[1744370872790,6.41725,1558.9,1558.3,10.71644]
[1744370872993,1.28393,1558.7,1558.6,1.28393]
[1744370873303,3.2078,1558.9,1558.4,49.95192]
[1744370873497,1.28389,1558.7,1558.6,1.28389]
[1744370873789,3.20968,1558.7,1558.4,44.81547]
[1744370873992,1.28402,1558.5,1558.4,44.81547]
[1744370874496,1.28402,1558.5,1558.4,44.81545]
[1744370874689,1.284,1558.6,1558.5,1.28402]
[1744370874889,1.284,1558.6,1558.5,2.72]
[1744370875589,4.49173,1558.7,1558.5,2.72]
[1744370875784,1.28394,1558.6,1558.5,4.00397]
[1744370876087,4.4917,1558.7,1558.6,1.28394]
[1744370876288,1.2839,1558.7,1558.6,1.28394]
[1744370876584,5.60360031,1558.8,1558.5,4.00396]
[1744370876585,1.28394,1558.6,1558.5,4.00396]
[1744370876787,1.28411,1558.5,1558.4,1.28409]
[1744370877184,1.28392,1558.7,1558.6,1.28391]
[1744370877389,5.60360031,1558.8,1558.7,1.28386]
[1744370877598,0.00960031,1558.8,1558.7,1.28386]
[1744370877796,1.28386,1558.7,1558.6,2.7805]
[1744370878007,1.284,1558.6,1558.3,40.8]
[1744370878299,1.29340031,1558.8,1558.7,1.28386]
[1744370878799,0.00960031,1558.8,1558.7,1.28386]
[1744370879296,0.00960031,1558.8,1558.7,4.06436]
[1744370879498,0.00960031,1558.8,1558.7,2.44331584]
[1744370879692,0.00960031,1558.8,1558.7,6.09757584]
[1744370879995,13.79651925,1559.5,1558.9,3.20916]
[1744370880201,1.28349,1559.2,1559.1,1.28351]
[1744370880593,2.5539,1559.4,1559.0,1.28358]
[1744370880594,1.28361,1559.1,1559.0,1.28358]
[1744370880805,1.28367,1559.0,1558.9,1.28366]
[1744370880996,1.28375,1558.9,1558.8,1.28373]
[1744370881296,6.02102,1559.1,1559.0,1.28361]
[1744370881297,4.10520031,1559.1,1559.0,1.28361]
[1744370881499,0.00960031,1559.1,1559.0,1.28361]
[1744370882100,1.29313031,1559.1,1559.0,1.28361]
[1744370882299,0.00960031,1559.1,1559.0,1.28361]
[1744370882499,1.29313031,1559.1,1559.0,1.28361]
[1744370882899,1.28368,1559.0,1558.9,1.28366]
[1744370883103,0.00960031,1559.1,1559.0,1.28361]
[1744370883706,0.00960031,1559.1,1559.0,3.94221]
[1744370884303,0.00960031,1559.1,1559.0,12.15001]
[1744370885091,3.2078,1559.5,1559.3,1.28337]
[1744370885396,8.66367925,1559.8,1559.7,1.28304]
[1744370885602,7.38066925,1559.8,1559.7,1.28304]
[1744370886203,7.38066925,1559.8,1559.6,3.95126031]
[1744370886405,1.28304,1559.7,1559.6,3.95126031]
[1744370886607,1.28304,1559.7,1559.6,1.29266031]
[1744370886905,10.03686925,1559.8,1559.6,0.00960031]
[1744370887105,7.38066925,1559.8,1559.7,1.28304]
[1744370888807,7.38066925,1559.8,1559.6,1.29264031]
[1744370889007,1.28304,1559.7,1559.6,1.29264031]
[1744370889208,1.28304,1559.7,1559.6,0.00960031]
[1744370890606,4.49084,1559.7,1559.6,0.00960031]
[1744370891008,9.49084,1559.7,1559.6,0.00960031]
[1744370891700,4.49084,1559.7,1559.6,0.00960031]
[1744370891897,9.49084,1559.7,1559.6,0.00960031]
[1744370892101,9.49084,1559.7,1559.2,1.28337]
[1744370892102,1.2834,1559.3,1559.2,1.28337]
[1744370893106,1.28341,1559.3,1559.2,1.28338]
[1744370893308,1.28336,1559.4,1559.3,1.28337]
[1744370893709,1.28326,1559.5,1559.4,1.28323]
[1744370893910,2.6592,1559.6,1559.2,3.20853]
[1744370894112,1.28308,1559.7,1559.6,1.28301]
[1744370894609,1.28315,1559.6,1559.5,1.28312]
[1744370894911,1.28316,1559.6,1559.5,1.2831]
[1744370895105,5.86678,1559.8,1559.3,8.67814]
[1744370895312,1.28311,1559.7,1559.6,1.28307]
[1744370895611,1.28317,1559.6,1559.5,1.28313]
[1744370896013,1.2832,1559.5,1559.4,42.08322]
[1744370896209,1.2832,1559.5,1559.4,1.28322]
[1744370896516,1.28345,1559.3,1559.2,1.28344]
[1744370897306,3.90276,1559.4,1559.3,1.28337]
[1744370897910,1.28345,1559.3,1559.2,1.28338]
[1744370898411,3.90285,1559.3,1559.2,1.28338]
[1744370899405,1.28345,1559.2,1559.1,1.29307031]
[1744370899808,1.28345,1559.2,1559.1,4.10067031]
[1744370900010,3.90282,1559.3,1559.2,1.28345]
[1744370900211,3.90282,1559.3,1559.2,4.09105]
[1744370900709,6.41587,1559.5,1559.2,4.09105]
[1744370900710,3.2078,1559.5,1559.2,6.01617]
[1744370900909,1.28331,1559.4,1559.3,1.28329]
[1744370901517,1.28326,1559.5,1559.4,1.28323]
[1744370901815,1.28326,1559.5,1559.4,1.28324]
[1744370902017,1.28336,1559.4,1559.3,1.28332]
[1744370903619,1.28326,1559.5,1559.4,1.28323]
[1744370904115,14.14659,1559.6,1559.5,1.2832]
[1744370904414,11.87919,1559.6,1559.5,1.2832]
[1744370904720,11.87151925,1559.7,1559.6,1.28312]
[1744370904918,7.38066925,1559.7,1559.6,1.28312]
[1744370905613,9.86909106,1559.8,1559.7,1.28304]
[1744370906321,9.86909106,1559.8,1559.7,9.19064]
[1744370907020,9.86909106,1559.8,1559.7,5.98284]
[1744370907921,3.91583031,1559.9,1559.8,1.28295]
[1744370908115,0.00960031,1559.9,1559.8,1.28295]
[1744370908520,1.29247031,1559.9,1559.8,1.28295]
[1744370908726,0.00960031,1559.9,1559.8,1.28295]
[1744370908909,0.00960031,1559.9,1559.8,3.86505]